bitfinex-derivatives/quotes_BTCF0:USTF0_20250910
["timestamp","ask_amount","ask_price","bid_price","bid_amount"]
[1757510296744,1.61890128,113750.0,113740.0,0.03583168]
[1757510297352,1.2680513,113750.0,113740.0,0.03583168]
[1757510297651,1.44347629,113750.0,113740.0,0.03583168]
[1757510298243,1.2680513,113750.0,113740.0,0.03583168]
[1757510298443,1.44347629,113750.0,113740.0,0.03583168]
[1757510299446,1.61890128,113750.0,113740.0,0.01317168]
[1757510299752,1.63952723,113750.0,113730.0,0.02968168]
[1757510299951,0.71164998,113740.0,113730.0,0.02968168]
[1757510300449,0.5947417,113740.0,113730.0,0.02968168]
[1757510301444,0.61537263,113740.0,113730.0,0.00702168]
[1757510301652,0.61637263,113740.0,113730.0,0.00702168]
[1757510301849,0.38243093,113740.0,113730.0,0.00702168]
[1757510302050,0.61637263,113740.0,113730.0,0.00702168]
[1757510302249,0.61637263,113740.0,113730.0,0.02968168]
[1757510303352,0.5957417,113740.0,113730.0,0.02968168]
[1757510303652,0.8457417,113740.0,113730.0,0.00702168]
[1757510303849,0.86637275,113740.0,113730.0,0.00702168]
[1757510304042,0.86637275,113740.0,113720.0,0.01535174]
[1757510304248,1.31285085,113730.0,113720.0,0.01535174]
[1757510304850,1.33348039,113730.0,113720.0,0.01535174]
[1757510305052,1.4298217,113730.0,113720.0,0.00150174]
[1757510305357,1.45045165,113730.0,113720.0,0.00150174]
[1757510305856,1.45045165,113730.0,113720.0,0.00250174]
[1757510305857,1.70045165,113730.0,113720.0,0.00250174]
[1757510307652,1.70045165,113730.0,113720.0,0.00350174]
[1757510309558,1.46622995,113730.0,113720.0,0.00350174]
[1757510309762,1.70017165,113730.0,113720.0,0.00350174]
[1757510309954,0.86537165,113730.0,113720.0,0.00350174]
[1757510310154,0.7484008,113730.0,113720.0,0.00350174]
[1757510310356,1.58312962,113730.0,113720.0,0.01652174]
[1757510311160,0.74836962,113730.0,113720.0,0.01652174]
[1757510311360,1.58312962,113730.0,113720.0,0.01652174]
[1757510311557,1.46615877,113730.0,113720.0,0.00350174]
[1757510311764,1.70010047,113730.0,113720.0,0.00350174]
[1757510312467,0.86534047,113730.0,113720.0,0.00350174]
[1757510312662,1.70006047,113730.0,113720.0,0.00350174]
[1757510312964,1.70006047,113730.0,113720.0,0.01652174]
[1757510313262,1.46603877,113730.0,113720.0,0.03918174]
[1757510313471,1.58300962,113730.0,113720.0,0.03918174]
[1757510313654,1.69998047,113730.0,113720.0,0.03918174]
[1757510313858,1.71170047,113730.0,113720.0,0.02418174]
[1757510314261,1.71170047,113730.0,113720.0,0.00152174]
[1757510314564,1.71171115,113730.0,113700.0,0.0133718]
[1757510314766,0.48949085,113710.0,113700.0,0.0360318]
[1757510315961,0.37252,113710.0,113700.0,0.0360318]
[1757510316163,0.48949085,113710.0,113700.0,0.0360318]
[1757510317565,0.48949085,113710.0,113700.0,0.0380318]
[1757510318161,0.48949085,113710.0,113700.0,0.0400318]
[1757510318766,0.85029085,113710.0,113700.0,0.0400318]
[1757510319668,0.92886614,113710.0,113700.0,0.0400318]
[1757510320162,0.92886614,113710.0,113700.0,0.0380318]
[1757510320367,1.04583699,113710.0,113700.0,0.0153718]
[1757510320666,1.04583699,113710.0,113700.0,0.0023518]
[1757510320863,1.05316699,113710.0,113700.0,0.0023518]
[1757510321260,1.05316699,113710.0,113700.0,0.0003518]
[1757510323160,0.92886614,113710.0,113700.0,0.0003518]
[1757510323367,0.92886614,113710.0,113700.0,0.0364918]
[1757510323869,0.81189529,113710.0,113700.0,0.0364918]
[1757510324172,1.76302614,113710.0,113700.0,0.0364918]
[1757510324368,1.64605529,113710.0,113700.0,0.0364918]
[1757510324763,1.76302614,113710.0,113700.0,0.0452818]
[1757510327071,1.76294614,113710.0,113700.0,0.0452818]
[1757510329573,1.64597529,113710.0,113700.0,0.0452818]
[1757510329775,1.76294614,113710.0,113700.0,0.0452818]
[1757510329965,0.92886614,113710.0,113700.0,0.41225265]
[1757510330161,0.92886614,113710.0,113700.0,0.2952818]
[1757510330867,0.92886614,113710.0,113700.0,0.0452818]
[1757510331268,1.76290614,113710.0,113700.0,0.0452818]
[1757510331467,0.92886614,113710.0,113700.0,0.0452818]
[1757510331684,0.92886614,113710.0,113700.0,0.2952818]
[1757510331881,0.94914079,113710.0,113700.0,0.2952818]
[1757510332469,0.83216994,113710.0,113700.0,0.2952818]
[1757510332669,0.94914079,113710.0,113700.0,0.2952818]
[1757510333177,0.94914079,113710.0,113700.0,0.0452818]
[1757510334677,0.83216994,113710.0,113700.0,0.0452818]
[1757510334880,0.94914079,113710.0,113700.0,0.0452818]
[1757510336276,1.78310079,113710.0,113700.0,0.0452818]
[1757510337479,1.78310079,113710.0,113700.0,0.16225265]
[1757510337975,1.78310079,113710.0,113700.0,0.04493]
[1757510339081,1.78310079,113710.0,113700.0,0.16190085]
[1757510339378,1.78310079,113710.0,113700.0,0.04493]
[1757510339683,1.66612994,113710.0,113700.0,0.04493]
[1757510339883,0.94914079,113710.0,113700.0,0.16190085]
[1757510340181,1.66604994,113710.0,113700.0,0.16190085]
[1757510340382,1.78302079,113710.0,113700.0,0.16190085]
[1757510340778,1.66604994,113710.0,113700.0,0.16190085]
[1757510341382,1.78302079,113710.0,113700.0,0.16190085]
[1757510341888,1.78298079,113710.0,113700.0,0.16190085]
[1757510342286,0.06915861,113710.0,113700.0,0.5288717]
[1757510342479,1.19464,113720.0,113700.0,0.5288717]
[1757510342480,1.31161085,113720.0,113700.0,0.5288717]
[1757510342780,0.01172,113710.0,113700.0,0.16190085]
[1757510343586,0.08168049,113710.0,113700.0,0.16190085]
[1757510343786,0.08168049,113710.0,113700.0,0.2788717]
[1757510343987,0.08168049,113710.0,113700.0,0.16190085]
[1757510344884,0.08168049,113710.0,113700.0,0.2788717]
[1757510345083,0.06996049,113710.0,113700.0,0.2788717]
[1757510345282,1.32311483,113720.0,113700.0,0.2788717]
[1757510345487,0.40339685,113720.0,113710.0,0.15311085]
[1757510345685,1.23615685,113720.0,113710.0,0.15311085]
[1757510346079,1.3530877,113720.0,113710.0,0.03614]
[1757510346478,1.3540877,113720.0,113710.0,0.03614]
[1757510346687,1.47105855,113720.0,113710.0,0.03614]
[1757510346879,1.8463594,113720.0,113710.0,0.00879]
[1757510347079,1.8463594,113720.0,113680.0,0.01345]
[1757510347080,0.7518394,113720.0,113680.0,0.01345]
[1757510347278,0.01918,113700.0,113690.0,0.03614]
[1757510347490,0.76115287,113700.0,113690.0,0.15311085]
[1757510347789,0.87812372,113700.0,113690.0,0.03614]
[1757510348195,0.76115287,113700.0,113690.0,0.03614]
[1757510348381,0.87812372,113700.0,113690.0,0.03614]
[1757510348782,0.76115287,113700.0,113690.0,0.15311085]
[1757510349082,0.76115287,113700.0,113690.0,0.03614]
[1757510349083,0.85775085,113700.0,113690.0,0.03614]
[1757510351082,0.42984606,113710.0,113700.0,0.03506]
[1757510351392,0.06904606,113710.0,113700.0,1.23567085]
[1757510351591,0.48727483,113720.0,113700.0,1.23567085]
[1757510351889,0.52682542,113720.0,113710.0,0.03506]
[1757510352697,0.40985457,113720.0,113710.0,0.03506]
[1757510352889,0.64379627,113720.0,113710.0,0.03506]
[1757510353192,0.64479627,113720.0,113710.0,0.03506]
[1757510353493,0.90212627,113720.0,113700.0,0.01316]
[1757510353693,0.49695085,113710.0,113700.0,0.03506]
[1757510354994,0.56890197,113710.0,113700.0,0.03506]
[1757510355388,0.56990197,113710.0,113700.0,0.03506]
[1757510356087,0.56990197,113710.0,113700.0,0.15203085]
[1757510356693,0.43375112,113710.0,113700.0,0.40203085]
[1757510356889,0.07295112,113710.0,113700.0,0.40203085]
[1757510357093,0.001,113710.0,113700.0,0.6069461]
[1757510357288,0.001,113710.0,113700.0,0.5190017]
[1757510357688,0.001,113710.0,113700.0,1.23551085]
[1757510358899,0.001,113710.0,113700.0,1.3524817]
[1757510359285,0.001,113710.0,113700.0,1.23551085]
[1757510360391,0.001,113710.0,113700.0,1.46951966]
[1757510361393,0.38098,113710.0,113700.0,0.28506]
[1757510361593,0.55646983,113710.0,113700.0,1.46943966]
[1757510361794,0.55646983,113710.0,113700.0,1.21943966]
[1757510362098,0.55646983,113710.0,113700.0,1.04390983]
[1757510363700,0.38098,113710.0,113700.0,1.04390983]
[1757510364195,0.55646983,113710.0,113700.0,0.21054983]
[1757510364395,0.55646983,113710.0,113700.0,0.86834]
[1757510364587,0.55646983,113710.0,113700.0,1.04382983]
[1757510365191,0.38098,113710.0,113700.0,1.04382983]
[1757510365488,0.55646983,113710.0,113700.0,1.2286085]
[1757510365691,0.55646983,113710.0,113700.0,1.21927966]
[1757510365897,0.55646983,113710.0,113700.0,1.04378983]
[1757510366999,0.55646983,113710.0,113700.0,0.21054983]
[1757510367199,0.55646983,113710.0,113700.0,0.86826]
[1757510367400,0.55646983,113710.0,113700.0,1.04374983]
[1757510367590,0.55646983,113710.0,113700.0,0.86826]
[1757510367793,0.55646983,113710.0,113700.0,1.04374983]
[1757510367994,0.55646983,113710.0,113700.0,0.86826]
[1757510368304,0.55646983,113710.0,113700.0,1.04374983]
[1757510368695,0.62612779,113710.0,113700.0,1.04374983]
[1757510369202,0.3618,113710.0,113700.0,1.21923966]
[1757510370903,0.38098,113710.0,113700.0,0.86826]
[1757510371103,0.55646983,113710.0,113700.0,1.21923966]
[1757510371691,0.55646983,113710.0,113700.0,0.38603966]
[1757510371897,0.55646983,113710.0,113700.0,1.21911966]
[1757510372097,0.55646983,113710.0,113700.0,0.38603966]
[1757510372303,0.55646983,113710.0,113700.0,1.04358983]
[1757510372790,0.576838,113710.0,113700.0,1.04358983]
[1757510373195,0.57683824,113710.0,113700.0,1.04358983]
[1757510373703,0.57683824,113710.0,113700.0,1.21907966]
[1757510373902,0.40134841,113710.0,113700.0,1.21907966]
[1757510374107,0.57683824,113710.0,113700.0,1.21907966]
[1757510374402,0.55646983,113710.0,113700.0,1.21907966]
[1757510374796,0.38098,113710.0,113700.0,1.21907966]
[1757510375194,0.55756566,113710.0,113700.0,1.21907966]
[1757510375599,0.38207583,113710.0,113700.0,1.21907966]
[1757510375802,0.57674566,113710.0,113700.0,0.38603966]
[1757510376008,0.57674566,113710.0,113700.0,1.04350983]
[1757510376199,0.57674566,113710.0,113700.0,0.21054983]
[1757510376399,0.57674566,113710.0,113700.0,1.04346983]
[1757510377301,0.40125583,113710.0,113700.0,1.21895966]
[1757510377503,0.57674566,113710.0,113700.0,1.21895966]
[1757510378301,0.55646983,113710.0,113700.0,1.04346983]
[1757510378499,0.55646983,113710.0,113700.0,1.04338983]
[1757510378909,0.38098,113710.0,113700.0,0.21054983]
[1757510379104,0.57675739,113710.0,113700.0,1.04338983]
[1757510379906,0.38208756,113710.0,113700.0,0.8679]
[1757510380201,0.38208756,113710.0,113700.0,1.21887966]
[1757510380904,0.55757739,113710.0,113700.0,1.21887966]
[1757510381108,0.53728983,113710.0,113700.0,1.21887966]
[1757510381301,0.55758124,113710.0,113700.0,1.21887966]
[1757510381497,0.57676124,113710.0,113700.0,1.04330983]
[1757510382305,0.57676124,113710.0,113700.0,1.04326983]
[1757510382910,0.57676124,113710.0,113700.0,1.04322983]
[1757510383305,0.55646983,113710.0,113700.0,0.86774]
[1757510383506,0.62695084,113710.0,113700.0,1.04322983]
[1757510384109,0.64724364,113710.0,113700.0,0.8677]
[1757510384317,0.64724364,113710.0,113700.0,1.04318983]
[1757510384615,0.64724364,113710.0,113700.0,0.8677]
[1757510384815,0.64724364,113710.0,113700.0,1.04318983]
[1757510386522,0.64724364,113710.0,113700.0,0.8677]
[1757510386826,0.64724364,113710.0,113700.0,1.04318983]
[1757510390516,1.07272709,113710.0,113700.0,0.86746]
[1757510391118,1.07272709,113710.0,113700.0,0.01316]
[1757510391310,1.07272709,113710.0,113690.0,0.92556422]
[1757510391523,0.73095966,113700.0,113690.0,0.88520204]
[1757510391916,0.37998,113700.0,113690.0,0.88520204]
[1757510392118,0.73095966,113700.0,113690.0,0.88520204]
[1757510392319,0.73095966,113700.0,113690.0,0.03484]
[1757510392518,0.73095966,113700.0,113690.0,0.8672]
[1757510393520,0.73095966,113700.0,113690.0,0.92895218]
[1757510393920,0.37998,113700.0,113690.0,0.92895218]
[1757510394122,0.73095966,113700.0,113690.0,0.86716]
[1757510394318,0.73095966,113700.0,113690.0,0.03484]
[1757510394519,0.37998,113700.0,113690.0,0.86712]
[1757510394823,0.73095966,113700.0,113690.0,0.03584]
[1757510395022,1.16110949,113700.0,113690.0,0.001]
[1757510395219,1.18138493,113700.0,113690.0,0.001]
[1757510395620,1.18138493,113700.0,113690.0,0.002]
[1757510395813,1.31052795,113700.0,113690.0,0.002]
[1757510396623,1.31152795,113700.0,113670.0,0.07491218]
[1757510396924,0.73095966,113680.0,113670.0,0.09630218]
[1757510397120,0.73095966,113680.0,113670.0,0.03455]
[1757510398825,1.09175966,113680.0,113660.0,0.01366]
[1757510399027,0.37998,113670.0,113660.0,0.03505]
[1757510399229,0.56448942,113670.0,113660.0,0.03505]
[1757510400021,0.56448942,113670.0,113660.0,0.01366]
[1757510400223,0.73997925,113670.0,113660.0,0.01466]
[1757510400430,0.98997925,113670.0,113660.0,0.001]
[1757510400725,1.82209925,113670.0,113660.0,0.001]
[1757510401226,0.98997925,113670.0,113660.0,0.001]
[1757510401426,0.73997925,113670.0,113660.0,0.001]
[1757510401733,1.39656942,113670.0,113660.0,0.03705]
[1757510402223,0.63403827,113670.0,113660.0,0.03705]
[1757510402431,0.45854844,113670.0,113660.0,0.38802966]
[1757510402726,0.63403827,113670.0,113660.0,0.21253983]
[1757510403314,0.63403827,113670.0,113660.0,0.46253983]
[1757510404220,0.63403827,113670.0,113660.0,0.63802966]
[1757510404429,0.44952885,113670.0,113660.0,0.63802966]
[1757510404628,0.62501868,113670.0,113660.0,0.28705]
[1757510404830,0.44952885,113670.0,113660.0,0.46253983]
[1757510405126,0.62501868,113670.0,113660.0,0.63802966]
[1757510405326,0.43034885,113670.0,113660.0,0.63802966]
[1757510405622,0.3608,113680.0,113660.0,1.08680496]
[1757510405823,0.3608,113680.0,113670.0,1.04253983]
[1757510406322,0.37998,113680.0,113670.0,0.86705]
[1757510406529,0.3608,113680.0,113670.0,1.04253983]
[1757510408118,0.3608,113680.0,113670.0,0.86705]
[1757510408323,0.3608,113680.0,113670.0,1.04253983]
[1757510408722,0.3608,113680.0,113670.0,1.21802966]
[1757510409026,0.3608,113690.0,113680.0,0.0138]
[1757510409332,0.3608,113690.0,113680.0,0.38730966]
[1757510410330,0.3618,113690.0,113680.0,0.38730966]
[1757510411033,0.3618,113690.0,113680.0,0.03633]
[1757510411334,0.3618,113690.0,113680.0,0.38730966]
[1757510412232,0.3628,113690.0,113680.0,0.38730966]
[1757510413527,0.002,113690.0,113680.0,0.38730966]
[1757510415930,0.002,113690.0,113680.0,1.21890966]
[1757510416232,0.002,113690.0,113680.0,1.21878966]
[1757510416433,0.002,113690.0,113680.0,0.38730966]
[1757510416638,0.002,113690.0,113680.0,1.21874966]
[1757510417338,0.002,113690.0,113680.0,1.22779549]
[1757510420044,0.002,113690.0,113680.0,2.10204522]
[1757510422345,0.02066878,113700.0,113690.0,0.03633]
[1757510422542,0.04096029,113700.0,113690.0,0.27033166]
[1757510422741,0.04096029,113700.0,113690.0,0.15333083]
[1757510423143,0.04096029,113700.0,113690.0,0.24128303]
[1757510423342,0.04096029,113700.0,113690.0,0.51413083]
[1757510423541,0.04096029,113700.0,113690.0,0.71908386]
[1757510423742,0.02029151,113700.0,113690.0,1.34517083]
[1757510424141,0.02029151,113700.0,113690.0,0.51413083]
[1757510424346,0.02329151,113700.0,113690.0,1.34513083]
[1757510424747,0.02529151,113700.0,113690.0,1.34513083]
[1757510425446,0.02529151,113700.0,113690.0,1.34509083]
[1757510425646,0.02529151,113700.0,113690.0,0.51413083]
[1757510425839,0.02529151,113700.0,113690.0,1.34505083]
[1757510426342,0.04634151,113700.0,113690.0,1.34501083]
[1757510428441,0.02529151,113700.0,113690.0,1.34497083]
[1757510430038,0.02529151,113700.0,113690.0,1.34489083]
[1757510430243,0.02529151,113700.0,113690.0,1.34477083]
[1757510431950,0.04634151,113700.0,113690.0,1.34465083]
[1757510432144,0.16334234,113700.0,113690.0,0.03633]
[1757510432338,0.89114317,113700.0,113690.0,0.03633]
[1757510432852,0.89114317,113700.0,113690.0,0.86685]
[1757510433052,0.77414234,113700.0,113690.0,0.86685]
[1757510433350,0.77414234,113700.0,113690.0,0.03633]
[1757510433544,0.77414234,113700.0,113690.0,0.86677]
[1757510434342,0.65714151,113700.0,113690.0,0.86677]
[1757510434543,0.77414234,113700.0,113690.0,0.86677]
[1757510437354,0.75385083,113700.0,113690.0,0.86677]
[1757510438651,0.87085166,113700.0,113680.0,0.07555218]
[1757510438953,0.50018083,113690.0,113680.0,0.06175218]
[1757510439153,0.87651166,113690.0,113670.0,0.15227254]
[1757510439356,0.61718166,113680.0,113670.0,0.06175218]
[1757510439657,0.61718166,113680.0,113660.0,0.90557218]
[1757510439847,0.50018083,113670.0,113660.0,0.92844218]
[1757510440041,0.50018083,113670.0,113660.0,0.09828218]
[1757510440247,0.38318,113670.0,113660.0,1.04544301]
[1757510440854,0.38318,113670.0,113660.0,0.92844218]
[1757510441043,0.38318,113670.0,113660.0,1.04544301]
[1757510441448,0.38318,113670.0,113660.0,0.92844218]
[1757510441652,0.38318,113670.0,113660.0,1.04544301]
[1757510442052,0.38318,113670.0,113660.0,0.98369083]
[1757510442552,0.38318,113670.0,113660.0,0.03653]
[1757510442755,0.50018083,113670.0,113660.0,0.98461083]
[1757510442950,0.50018083,113670.0,113660.0,0.98457083]
[1757510443259,0.50018083,113670.0,113660.0,0.15653083]
[1757510443449,0.50018083,113670.0,113660.0,0.86957]
[1757510443649,0.57158038,113670.0,113660.0,0.93265835]
[1757510444157,0.45457955,113670.0,113660.0,0.93265835]
[1757510444358,0.57158038,113670.0,113660.0,0.93265835]
[1757510445559,0.57158038,113670.0,113660.0,0.93257835]
[1757510445959,0.58066869,113670.0,113660.0,0.93257835]
[1757510446162,0.58066869,113670.0,113660.0,0.03953]
[1757510446462,0.83066869,113670.0,113660.0,0.03953]
[1757510446756,0.83066869,113670.0,113660.0,0.10261835]
[1757510447648,0.83066869,113670.0,113660.0,0.07974835]
[1757510447846,0.83066869,113670.0,113660.0,0.06608835]
[1757510448255,0.83066869,113670.0,113660.0,0.10177835]
[1757510448655,0.71366786,113670.0,113660.0,0.10177835]
[1757510448857,0.83066869,113670.0,113660.0,0.10177835]
[1757510452267,0.83066869,113670.0,113660.0,0.06608835]
[1757510452268,0.83532869,113670.0,113660.0,0.06608835]
[1757510452666,0.95232952,113670.0,113660.0,0.06608835]
[1757510455069,1.54792786,113670.0,113660.0,0.06608835]
[1757510455370,1.66492869,113670.0,113660.0,0.01179]
[1757510456075,0.83532869,113670.0,113660.0,0.01179]
[1757510456269,1.66492869,113670.0,113660.0,0.01179]
[1757510457370,1.41026869,113670.0,113660.0,0.04748]
[1757510457771,1.41014869,113670.0,113660.0,0.04748]
[1757510458881,1.41014869,113670.0,113660.0,0.11056835]
[1757510459383,1.41014869,113670.0,113660.0,0.04748]
[1757510460280,0.58066869,113670.0,113660.0,0.04748]
[1757510460481,1.41010869,113670.0,113660.0,0.04748]
[1757510460679,0.46366786,113670.0,113660.0,0.16448083]
[1757510460875,0.58066869,113670.0,113660.0,0.22756918]
[1757510461181,0.58066869,113670.0,113660.0,0.11056835]
[1757510461882,0.58066869,113670.0,113660.0,0.04748]
[1757510462486,0.46366786,113670.0,113660.0,0.11056835]
[1757510462684,0.58066869,113670.0,113660.0,0.11056835]
[1757510462885,0.58066869,113670.0,113660.0,0.04748]
[1757510463087,0.58066869,113670.0,113660.0,0.11056835]
[1757510467584,0.58066869,113670.0,113660.0,0.10556835]
[1757510468487,0.46366786,113670.0,113660.0,0.22256918]
[1757510468684,0.58066869,113670.0,113660.0,0.22256918]
[1757510468884,0.45457955,113670.0,113660.0,0.47256918]
[1757510470086,0.45457955,113670.0,113660.0,0.35556835]
[1757510470087,0.57158038,113670.0,113660.0,0.35556835]
[1757510473178,0.57158038,113670.0,113660.0,0.47256918]
[1757510473475,0.59287953,113670.0,113660.0,0.40948083]
[1757510473681,0.4758787,113670.0,113660.0,0.40948083]
[1757510473885,0.59287953,113670.0,113660.0,0.40948083]
[1757510474481,0.59287953,113670.0,113660.0,0.29248]
[1757510474776,0.57158038,113670.0,113660.0,0.29248]
[1757510475385,0.59286997,113670.0,113660.0,0.28569]
[1757510476088,0.57158038,113670.0,113660.0,0.28569]
[1757510476888,0.57158038,113670.0,113660.0,0.03569]
[1757510477289,0.45457955,113670.0,113660.0,0.03569]
[1757510477588,0.57158038,113670.0,113660.0,0.03569]
[1757510479491,0.45457955,113670.0,113660.0,0.03569]
[1757510479691,1.39994038,113670.0,113660.0,0.03569]
[1757510479984,1.421177,113670.0,113660.0,0.03569]
[1757510482591,1.39990038,113670.0,113660.0,0.03569]
[1757510484089,1.39990038,113670.0,113660.0,0.03599]
[1757510484285,1.45857656,113670.0,113660.0,0.03599]
[1757510485892,1.4798426,113670.0,113660.0,0.03599]
[1757510487185,1.45857656,113670.0,113660.0,0.03599]
[1757510487386,1.28289955,113670.0,113660.0,0.03599]
[1757510487585,1.45857656,113670.0,113660.0,0.03599]
[1757510488395,1.28289955,113670.0,113660.0,0.03599]
[1757510488693,1.45857656,113670.0,113660.0,0.03599]
[1757510490391,1.45805656,113670.0,113660.0,0.21166701]
[1757510490590,0.63025656,113670.0,113660.0,0.21166701]
[1757510490788,1.45801656,113670.0,113660.0,0.21166701]
[1757510490990,1.45801656,113670.0,113660.0,0.03599]
[1757510496096,1.47924608,113670.0,113660.0,0.03599]
[1757510496391,1.65958309,113670.0,113650.0,0.01282]
[1757510496708,0.73358402,113660.0,113650.0,0.03603]
[1757510497193,0.38223,113660.0,113650.0,0.03603]
[1757510497394,0.73358402,113660.0,113650.0,0.03603]
[1757510498199,0.73358402,113660.0,113650.0,0.03703]
[1757510498700,0.73458402,113660.0,113650.0,0.03703]
[1757510499091,0.73558402,113660.0,113650.0,0.03703]
[1757510499794,0.38423,113660.0,113650.0,0.03703]
[1757510499993,1.56290402,113660.0,113650.0,0.03703]
[1757510502694,1.92370402,113660.0,113650.0,0.03703]
[1757510503095,1.92370402,113660.0,113650.0,0.10011835]
[1757510504002,1.92370402,113660.0,113650.0,0.03703]
[1757510505202,1.92370402,113660.0,113650.0,0.001]
[1757510506104,1.57235,113660.0,113650.0,0.001]
[1757510506302,1.57235,113660.0,113650.0,0.02209]
[1757510506497,1.92370402,113660.0,113650.0,0.03486]
[1757510506894,1.92334402,113660.0,113650.0,0.03486]
[1757510507703,1.92334402,113660.0,113650.0,0.09794835]
[1757510508201,1.09638402,113660.0,113650.0,0.09794835]
[1757510508401,1.92330402,113660.0,113650.0,0.27362536]
[1757510508796,1.92330402,113660.0,113650.0,0.21053701]
[1757510509103,1.92330402,113660.0,113650.0,0.03486]
[1757510509802,1.92318402,113660.0,113650.0,0.03486]
[1757510510001,1.92318402,113660.0,113650.0,0.10479835]
[1757510510303,1.09638402,113660.0,113650.0,0.04171]
[1757510510499,0.74503,113660.0,113650.0,0.21738701]
[1757510510700,0.38423,113660.0,113650.0,0.04171]
[1757510511002,0.55990701,113660.0,113650.0,0.21738701]
[1757510512095,0.55990701,113660.0,113650.0,0.04171]
[1757510512295,0.55990701,113660.0,113650.0,0.21738701]
[1757510512507,0.38423,113660.0,113650.0,0.21738701]
[1757510512707,0.55990701,113660.0,113650.0,0.21738701]
[1757510513903,0.55990701,113660.0,113650.0,0.04171]
[1757510514105,0.55990701,113660.0,113650.0,0.21738701]
[1757510514902,0.38423,113660.0,113650.0,0.21738701]
[1757510515108,0.38423,113660.0,113650.0,0.28047536]
[1757510515404,0.73558402,113660.0,113650.0,0.28047536]
[1757510515608,0.73558402,113660.0,113650.0,0.21738701]
[1757510515803,0.73558402,113660.0,113650.0,0.04171]
[1757510517511,1.09638402,113660.0,113650.0,0.04171]
[1757510518009,1.11765218,113660.0,113650.0,0.04171]
[1757510519006,1.11765218,113660.0,113650.0,0.00785]
[1757510523312,0.76629816,113660.0,113650.0,0.00785]
[1757510523512,1.29332919,113660.0,113650.0,0.00785]
[1757510524817,1.11765218,113660.0,113650.0,0.00785]
[1757510525405,1.94377218,113660.0,113650.0,0.00785]
[1757510525915,1.11765218,113660.0,113650.0,0.00785]
[1757510526118,1.94373218,113660.0,113650.0,0.00785]
[1757510526517,0.76629816,113660.0,113650.0,0.02894]
[1757510526723,1.94377218,113660.0,113650.0,0.02894]
[1757510527023,1.94377218,113660.0,113650.0,0.00785]
[1757510527822,2.11944919,113660.0,113650.0,0.00785]
[1757510528015,2.11944919,113660.0,113650.0,0.001]
[1757510528213,2.36944919,113660.0,113650.0,0.001]
[1757510528913,2.36944919,113660.0,113650.0,0.00785]
[1757510529915,2.36944919,113660.0,113630.0,0.34536037]
[1757510530119,2.36944919,113660.0,113630.0,0.01317202]
[1757510530120,0.90709701,113640.0,113630.0,0.01317202]
[1757510530314,0.90709701,113640.0,113630.0,0.03521202]
[1757510530315,1.90869402,113640.0,113630.0,0.03521202]
[1757510532515,1.90869402,113640.0,113630.0,0.03721202]
[1757510532820,1.90869402,113640.0,113630.0,0.00235202]
[1757510533027,2.08437103,113640.0,113630.0,0.00235202]
[1757510533413,1.90869402,113640.0,113630.0,0.00235202]
[1757510533720,2.08437103,113640.0,113630.0,0.00235202]
[1757510534123,0.75268855,113640.0,113630.0,0.03887202]
[1757510534317,1.73289701,113640.0,113630.0,0.03987202]
[1757510534515,0.90709701,113640.0,113630.0,0.21554903]
[1757510534715,1.90857402,113640.0,113630.0,0.03987202]
[1757510535020,1.90853402,113640.0,113630.0,0.03987202]
[1757510535216,0.73142,113640.0,113630.0,0.03987202]
[1757510535429,1.90853402,113640.0,113630.0,0.03987202]
[1757510535617,1.90853402,113640.0,113630.0,0.01783202]
[1757510535819,1.90849402,113640.0,113630.0,0.01783202]
[1757510536118,1.90849402,113640.0,113630.0,0.03987202]
[1757510536319,1.90849402,113640.0,113630.0,0.03687202]
[1757510536514,0.73142,113640.0,113630.0,0.03687202]
[1757510536724,1.90849402,113640.0,113630.0,0.03687202]
[1757510537022,1.90845402,113640.0,113630.0,0.03687202]
[1757510537425,1.08277402,113640.0,113630.0,0.03687202]
[1757510537628,1.90845402,113640.0,113630.0,0.03687202]
[1757510538030,1.5571,113640.0,113630.0,0.03687202]
[1757510538326,1.90845402,113640.0,113630.0,0.03687202]
[1757510538621,1.90841402,113640.0,113630.0,0.03687202]
[1757510539421,1.08277402,113640.0,113630.0,0.03687202]
[1757510539621,1.90841402,113640.0,113630.0,0.03687202]
[1757510540520,2.08409103,113640.0,113630.0,0.00135202]
[1757510545319,2.35534871,113640.0,113630.0,0.00135202]
[1757510546429,2.06274012,113640.0,113630.0,0.00135202]
[1757510546722,2.17995134,113640.0,113630.0,0.00135202]
[1757510546927,2.15869366,113640.0,113630.0,0.00135202]
[1757510547122,2.17995716,113640.0,113630.0,0.00135202]
[1757510548124,2.17995716,113640.0,113620.0,0.00035205]
[1757510548334,0.60766244,113630.0,113620.0,0.00035205]
[1757510548622,1.57070767,113630.0,113620.0,2.05e-06]
[1757510548824,1.84197301,113630.0,113620.0,2.05e-06]
[1757510549325,1.84197301,113630.0,113600.0,0.00035211]
[1757510549521,0.84534122,113610.0,113600.0,0.00035211]
[1757510549722,1.67054122,113610.0,113600.0,0.00035211]
[1757510549917,1.80839736,113610.0,113600.0,0.00035211]
[1757510550323,2.13635911,113610.0,113600.0,0.00035211]
[1757510550624,1.42837033,113610.0,113590.0,0.00035214]
[1757510550828,1.54356366,113600.0,113590.0,0.00035214]
[1757510551329,0.71840366,113600.0,113590.0,0.00035214]
[1757510551627,1.79356366,113600.0,113590.0,0.00035214]
[1757510552216,0.96940366,113600.0,113590.0,0.00035214]
[1757510552728,1.79652366,113600.0,113590.0,0.00035214]
[1757510553330,1.42931244,113600.0,113590.0,0.00035214]
[1757510555916,1.42927244,113600.0,113590.0,0.00035214]
[1757510556117,1.19485,113600.0,113590.0,0.03587214]
[1757510556324,1.42927244,113600.0,113580.0,0.00035217]
[1757510556523,0.48341122,113590.0,113580.0,0.03587217]
[1757510557024,0.3662,113590.0,113580.0,0.21617174]
[1757510557328,0.48341122,113590.0,113580.0,0.21617174]
[1757510557729,0.48341122,113590.0,113580.0,0.03587217]
[1757510559132,0.48341122,113590.0,113580.0,0.15308339]
[1757510559329,1.30841122,113590.0,113580.0,0.21617174]
[1757510559528,0.48441122,113590.0,113580.0,0.21617174]
[1757510560031,0.3672,113590.0,113580.0,0.21617174]
[1757510560230,0.3618,113590.0,113580.0,0.21617174]
[1757510560828,0.3618,113590.0,113580.0,0.09896052]
[1757510561121,0.3618,113590.0,113580.0,0.21617174]
[1757510561324,0.3618,113590.0,113580.0,0.09896052]
[1757510561526,0.3672,113590.0,113580.0,0.09896052]
[1757510561722,0.3672,113590.0,113580.0,0.21617174]
[1757510562826,0.3672,113590.0,113580.0,0.15308339]
[1757510563028,0.48441122,113590.0,113580.0,0.03587217]
[1757510563425,0.3672,113590.0,113580.0,0.15308339]
[1757510563629,0.47901122,113590.0,113580.0,0.15308339]
[1757510564033,0.3672,113590.0,113580.0,0.15308339]